[Event "NK ABC Kwalificatie 2"]
[Site "Zoetermeer, Netherlands"]
[Date "2025.01.04"]
[Round "4.1"]
[White "Bakija, Alan"]
[Black "Snijders, Take"]
[Result "0-1"]
[TimeControl "55+10"]
[WhiteFideId "8629346"]
[BlackFideId "8935927"]
[WhiteElo "2247"]
[BlackElo "2119"]

1. d4 {[%clk 00:54:32]} {[%emt 00:00:46]} Nf6 {[%clk 00:55:12]} {[%emt
00:00:08]} 2. c4 {[%clk 00:54:38]} {[%emt 00:00:05]} e6 {[%clk 00:55:12]}
{[%emt 00:00:11]} 3. g3 {[%clk 00:54:42]} {[%emt 00:00:05]} d5 {[%clk
00:55:05]} {[%emt 00:00:18]} 4. Bg2 {[%clk 00:54:36]} {[%emt 00:00:15]} dxc4
{[%clk 00:55:00]} {[%emt 00:00:15]} 5. Qa4+ {[%clk 00:54:38]} {[%emt 00:00:08]}
Nbd7 {[%clk 00:54:45]} {[%emt 00:00:25]} 6. Qxc4 {[%clk 00:54:35]} {[%emt
00:00:13]} a6 {[%clk 00:54:22]} {[%emt 00:00:33]} 7. Be3 {[%clk 00:53:45]}
{[%emt 00:01:00]} b5 {[%clk 00:49:29]} {[%emt 00:05:03]} 8. Qd3 {[%clk
00:48:34]} {[%emt 00:05:21]} Rb8 {[%clk 00:48:20]} {[%emt 00:01:20]} 9. Nd2
{[%clk 00:48:23]} {[%emt 00:00:20]} Be7 {[%clk 00:44:11]} {[%emt 00:04:20]} 10.
Rc1 {[%clk 00:44:05]} {[%emt 00:04:27]} Bb7 {[%clk 00:40:33]} {[%emt 00:03:48]}
11. Bxb7 {[%clk 00:43:44]} {[%emt 00:00:31]} Rxb7 {[%clk 00:40:38]} {[%emt
00:00:06]} 12. Ngf3 {[%clk 00:42:29]} {[%emt 00:01:24]} O-O {[%clk 00:37:51]}
{[%emt 00:02:58]} 13. O-O {[%clk 00:42:13]} {[%emt 00:00:24]} Nd5 {[%clk
00:36:57]} {[%emt 00:01:05]} 14. Nb3 {[%clk 00:42:07]} {[%emt 00:00:16]} Nxe3
{[%clk 00:35:10]} {[%emt 00:01:58]} 15. Qxe3 {[%clk 00:41:45]} {[%emt
00:00:31]} Nf6 {[%clk 00:33:13]} {[%emt 00:02:08]} 16. Na5 {[%clk 00:37:26]}
{[%emt 00:04:28]} Rb6 {[%clk 00:32:53]} {[%emt 00:00:30]} 17. Qb3 {[%clk
00:30:23]} {[%emt 00:07:13]} Ne4 {[%clk 00:23:42]} {[%emt 00:09:21]} 18. Nc6
{[%clk 00:29:58]} {[%emt 00:00:35]} Qd6 {[%clk 00:20:24]} {[%emt 00:03:28]} 19.
Nxe7+ {[%clk 00:29:47]} {[%emt 00:00:21]} Qxe7 {[%clk 00:20:32]} {[%emt
00:00:03]} 20. Qc2 {[%clk 00:29:34]} {[%emt 00:00:22]} Ng5 {[%clk 00:18:44]}
{[%emt 00:01:58]} 21. Nxg5 {[%clk 00:29:32]} {[%emt 00:00:11]} Qxg5 {[%clk
00:18:50]} {[%emt 00:00:04]} 22. Qxc7 {[%clk 00:29:36]} {[%emt 00:00:07]} Rbb8
{[%clk 00:18:52]} {[%emt 00:00:08]} 23. Qc5 {[%clk 00:28:26]} {[%emt 00:01:20]}
Qg4 {[%clk 00:18:03]} {[%emt 00:00:58]} 24. e3 {[%clk 00:27:02]} {[%emt
00:01:33]} h5 {[%clk 00:17:28]} {[%emt 00:00:46]} 25. Qd6 {[%clk 00:20:06]}
{[%emt 00:07:06]} Qe2 {[%clk 00:15:22]} {[%emt 00:02:17]} 26. Rc5 {[%clk
00:16:55]} {[%emt 00:03:20]} Qxb2 {[%clk 00:12:57]} {[%emt 00:02:35]} 27. Rxh5
{[%clk 00:15:57]} {[%emt 00:01:08]} Qxa2 {[%clk 00:11:45]} {[%emt 00:01:23]} 28.
Qf4 {[%clk 00:15:03]} {[%emt 00:01:03]} Qc2 {[%clk 00:09:30]} {[%emt 00:02:24]}
29. e4 {[%clk 00:08:15]} {[%emt 00:07:00]} Rbc8 {[%clk 00:08:40]} {[%emt
00:01:00]} 30. Qh4 {[%clk 00:06:18]} {[%emt 00:02:07]} f6 {[%clk 00:08:39]}
{[%emt 00:00:11]} 31. Ra1 {[%clk 00:04:46]} {[%emt 00:01:41]} b4 {[%clk
00:05:54]} {[%emt 00:02:56]} 32. Rxa6 {[%clk 00:04:05]} {[%emt 00:00:51]} b3
{[%clk 00:05:23]} {[%emt 00:00:41]} 33. Ra7 {[%clk 00:02:48]} {[%emt 00:01:27]}
Rc7 {[%clk 00:05:05]} {[%emt 00:00:29]} 34. Rh8+ {[%clk 00:02:10]} {[%emt
00:00:47]} Kf7 {[%clk 00:05:14]} {[%emt 00:00:01]} 35. Rxc7+ {[%clk 00:00:47]}
{[%emt 00:01:34]} Qxc7 {[%clk 00:05:22]} {[%emt 00:00:02]} 36. Qh5+ {[%clk
00:00:40]} {[%emt 00:00:16]} Ke7 {[%clk 00:05:31]} 37. Rxf8 {[%clk 00:00:12]}
{[%emt 00:00:38]} Kxf8 {[%clk 00:05:40]} {[%emt 00:00:01]} 38. Qh8+ {[%clk
00:00:20]} {[%emt 00:00:02]} Kf7 {[%clk 00:05:44]} {[%emt 00:00:06]} 39. Qh5+
{[%clk 00:00:27]} {[%emt 00:00:04]} Ke7 {[%clk 00:05:17]} {[%emt 00:00:37]} 40.
Qb5 {[%clk 00:00:21]} {[%emt 00:00:16]} Qc1+ {[%clk 00:04:34]} {[%emt
00:00:54]} 41. Kg2 {[%clk 00:00:30]} b2 {[%clk 00:04:42]} {[%emt 00:00:02]} 42.
Qb7+ {[%clk 00:00:26]} {[%emt 00:00:14]} Kf8 {[%clk 00:03:42]} {[%emt
00:01:10]} 43. Qb8+ {[%clk 00:00:26]} {[%emt 00:00:11]} Kf7 {[%clk 00:03:46]}
{[%emt 00:00:06]} 44. d5 {[%clk 00:00:17]} {[%emt 00:00:19]} b1=Q {[%clk
00:01:54]} {[%emt 00:02:02]} 45. dxe6+ {[%clk 00:00:25]} {[%emt 00:00:01]} Ke7
{[%clk 00:01:24]} {[%emt 00:00:41]} 46. Qa7+ {[%clk 00:00:33]} {[%emt
00:00:01]} Kxe6 {[%clk 00:01:32]} {[%emt 00:00:02]} 47. Qa6+ {[%clk 00:00:40]}
{[%emt 00:00:03]} Ke5 {[%clk 00:01:29]} {[%emt 00:00:12]} 48. f4+ {[%clk
00:00:13]} {[%emt 00:00:36]} Kd4 {[%clk 00:01:17]} {[%emt 00:00:23]} 49. Qa7+
{[%clk 00:00:13]} {[%emt 00:00:10]} Qc5 {[%clk 00:01:16]} {[%emt 00:00:11]} 50.
Qa4+ {[%clk 00:00:13]} {[%emt 00:00:11]} Ke3 {[%clk 00:00:59]} {[%emt
00:00:27]} 51. g4 {[%clk 00:00:11]} {[%emt 00:00:11]} Qxe4+ {[%clk 00:01:06]}
{[%emt 00:00:02]} 52. Kh3 {[%clk 00:00:19]} {[%emt 00:00:03]} Qxa4 {[%clk
00:01:14]} {[%emt 00:00:02]} 0-1

[Event "NK ABC Kwalificatie 2"]
[Site "Zoetermeer, Netherlands"]
[Date "2025.01.04"]
[Round "4.2"]
[White "Kleibeuker, Mika"]
[Black "Oskam, Dejen"]
[Result "1-0"]
[TimeControl "55+10"]
[WhiteFideId "8577228"]
[BlackFideId "8686733"]
[WhiteElo "1980"]
[BlackElo "1832"]

1. d4 {[%clk 00:55:13]} {[%emt 00:00:06]} d5 {[%clk 00:52:05]} {[%emt
00:03:16]} 2. c4 {[%clk 00:55:19]} {[%emt 00:00:04]} c6 {[%clk 00:52:11]}
{[%emt 00:00:04]} 3. Nf3 {[%clk 00:55:24]} {[%emt 00:00:04]} a6 {[%clk
00:52:12]} {[%emt 00:00:10]} 4. g3 {[%clk 00:54:15]} {[%emt 00:01:18]} b5
{[%clk 00:51:48]} {[%emt 00:00:34]} 5. b3 {[%clk 00:49:32]} {[%emt 00:04:54]}
e6 {[%clk 00:51:23]} {[%emt 00:00:35]} 6. Bg2 {[%clk 00:49:30]} {[%emt
00:00:12]} g6 {[%clk 00:50:43]} {[%emt 00:00:50]} 7. O-O {[%clk 00:48:49]}
{[%emt 00:00:51]} Bg7 {[%clk 00:50:25]} {[%emt 00:00:28]} 8. Qc2 {[%clk
00:47:11]} {[%emt 00:01:48]} Nd7 {[%clk 00:49:30]} {[%emt 00:01:05]} 9. e4
{[%clk 00:39:50]} {[%emt 00:07:31]} Ne7 {[%clk 00:46:48]} {[%emt 00:02:52]} 10.
exd5 {[%clk 00:36:24]} {[%emt 00:03:37]} cxd5 {[%clk 00:46:22]} {[%emt
00:00:35]} 11. c5 {[%clk 00:36:02]} {[%emt 00:00:33]} Nc6 {[%clk 00:45:50]}
{[%emt 00:00:42]} 12. Bb2 {[%clk 00:34:50]} {[%emt 00:01:21]} O-O {[%clk
00:45:28]} {[%emt 00:00:33]} 13. Nbd2 {[%clk 00:31:04]} {[%emt 00:03:55]} Re8
{[%clk 00:43:27]} {[%emt 00:02:11]} 14. a3 {[%clk 00:30:17]} {[%emt 00:00:58]}
Bb7 {[%clk 00:41:11]} {[%emt 00:02:26]} 15. b4 {[%clk 00:29:42]} {[%emt
00:00:45]} Rc8 {[%clk 00:40:46]} {[%emt 00:00:35]} 16. Rad1 {[%clk 00:29:12]}
{[%emt 00:00:39]} e5 {[%clk 00:40:32]} {[%emt 00:00:25]} 17. dxe5 {[%clk
00:29:11]} {[%emt 00:00:11]} a5 {[%clk 00:34:49]} {[%emt 00:05:53]} 18. Nd4
{[%clk 00:26:06]} {[%emt 00:03:16]} Nxd4 {[%clk 00:32:11]} {[%emt 00:02:48]} 19.
Bxd4 {[%clk 00:26:10]} {[%emt 00:00:05]} axb4 {[%clk 00:31:36]} {[%emt
00:00:45]} 20. axb4 {[%clk 00:26:09]} {[%emt 00:00:12]} Nxe5 {[%clk 00:30:57]}
{[%emt 00:00:48]} 21. Qc3 {[%clk 00:25:30]} {[%emt 00:00:50]} f6 {[%clk
00:29:36]} {[%emt 00:01:30]} 22. Rfe1 {[%clk 00:24:55]} {[%emt 00:00:46]} Kf7
{[%clk 00:27:53]} {[%emt 00:01:52]} 23. Nf3 {[%clk 00:20:11]} {[%emt 00:04:54]}
Nc6 {[%clk 00:26:42]} {[%emt 00:01:22]} 24. Rxe8 {[%clk 00:17:58]} {[%emt
00:02:22]} Kxe8 {[%clk 00:26:06]} {[%emt 00:00:46]} 25. Be3 {[%clk 00:16:59]}
{[%emt 00:01:09]} Kf7 {[%clk 00:23:53]} {[%emt 00:02:23]} 26. Rxd5 {[%clk
00:15:08]} {[%emt 00:02:01]} Qe7 {[%clk 00:21:29]} {[%emt 00:02:32]} 27. Qd2
{[%clk 00:14:48]} {[%emt 00:00:31]} Nb8 {[%clk 00:20:48]} {[%emt 00:00:52]} 28.
Rd6 {[%clk 00:14:28]} {[%emt 00:00:30]} Rc7 {[%clk 00:18:01]} {[%emt 00:02:58]}
29. Ng5+ {[%clk 00:12:48]} {[%emt 00:01:50]} fxg5 {[%clk 00:17:02]} {[%emt
00:01:09]} 30. Bxb7 {[%clk 00:12:53]} {[%emt 00:00:05]} Rxb7 {[%clk 00:16:52]}
{[%emt 00:00:19]} 31. Qd5+ {[%clk 00:13:00]} {[%emt 00:00:03]} Ke8 {[%clk
00:15:47]} {[%emt 00:01:15]} 32. Re6 {[%clk 00:13:06]} {[%emt 00:00:04]} Rd7
{[%clk 00:15:10]} {[%emt 00:00:47]} 33. Rxe7+ {[%clk 00:13:10]} {[%emt
00:00:06]} Kxe7 {[%clk 00:14:50]} {[%emt 00:00:30]} 34. Bxg5+ {[%clk 00:12:54]}
{[%emt 00:00:26]} Bf6 {[%clk 00:14:16]} {[%emt 00:00:44]} 35. Qe5+ {[%clk
00:12:58]} {[%emt 00:00:06]} 1-0

[Event "NK ABC Kwalificatie 2"]
[Site "Zoetermeer, Netherlands"]
[Date "2025.01.04"]
[Round "4.3"]
[White "Van de Poel, Jona"]
[Black "Kumar, Prajit Sai"]
[Result "0-1"]
[TimeControl "55+10"]
[WhiteFideId "8707633"]
[BlackFideId "8767979"]
[WhiteElo "1857"]
[BlackElo "2210"]

1. e4 {[%clk 00:55:15]} {[%emt 00:00:04]} c5 {[%clk 00:55:18]} {[%emt
00:00:03]} 2. Nf3 {[%clk 00:55:13]} {[%emt 00:00:11]} Nc6 {[%clk 00:55:26]}
{[%emt 00:00:03]} 3. d4 {[%clk 00:55:11]} {[%emt 00:00:11]} cxd4 {[%clk
00:55:32]} {[%emt 00:00:04]} 4. Nxd4 {[%clk 00:55:15]} {[%emt 00:00:06]} Nf6
{[%clk 00:55:36]} {[%emt 00:00:06]} 5. Nc3 {[%clk 00:55:20]} {[%emt 00:00:06]}
d6 {[%clk 00:55:39]} {[%emt 00:00:08]} 6. Bg5 {[%clk 00:55:24]} {[%emt
00:00:06]} e6 {[%clk 00:55:46]} {[%emt 00:00:04]} 7. f4 {[%clk 00:55:17]}
{[%emt 00:00:13]} h6 {[%clk 00:55:04]} {[%emt 00:00:55]} 8. Bxf6 {[%clk
00:52:24]} {[%emt 00:03:02]} Qxf6 {[%clk 00:55:07]} {[%emt 00:00:07]} 9. Nxc6
{[%clk 00:52:25]} {[%emt 00:00:09]} bxc6 {[%clk 00:55:10]} {[%emt 00:00:07]} 10.
Qd2 {[%clk 00:52:07]} {[%emt 00:00:29]} g5 {[%clk 00:54:41]} {[%emt 00:00:40]}
11. fxg5 {[%clk 00:49:15]} {[%emt 00:03:02]} Qxg5 {[%clk 00:54:31]} {[%emt
00:00:20]} 12. O-O-O {[%clk 00:49:04]} {[%emt 00:00:21]} Rb8 {[%clk 00:53:03]}
{[%emt 00:01:38]} 13. g3 {[%clk 00:43:11]} {[%emt 00:06:03]} Be7 {[%clk
00:52:36]} {[%emt 00:00:37]} 14. Qf4 {[%clk 00:41:24]} {[%emt 00:01:57]} e5
{[%clk 00:51:58]} {[%emt 00:00:49]} 15. Qxg5 {[%clk 00:41:07]} {[%emt
00:00:27]} hxg5 {[%clk 00:52:00]} {[%emt 00:00:07]} 16. Bc4 {[%clk 00:39:40]}
{[%emt 00:01:38]} Bh3 {[%clk 00:51:08]} {[%emt 00:01:02]} 17. Rd2 {[%clk
00:37:43]} {[%emt 00:02:07]} Rh7 {[%clk 00:50:36]} {[%emt 00:00:41]} 18. Rf2
{[%clk 00:36:30]} {[%emt 00:01:22]} f6 {[%clk 00:50:07]} {[%emt 00:00:40]} 19.
Nd1 {[%clk 00:35:34]} {[%emt 00:01:07]} Kd7 {[%clk 00:49:36]} {[%emt 00:00:41]}
20. Ne3 {[%clk 00:35:11]} {[%emt 00:00:31]} Be6 {[%clk 00:49:24]} {[%emt
00:00:23]} 21. Bxe6+ {[%clk 00:34:41]} {[%emt 00:00:40]} Kxe6 {[%clk 00:49:28]}
{[%emt 00:00:06]} 22. c4 {[%clk 00:31:37]} {[%emt 00:03:14]} Bd8 {[%clk
00:49:17]} {[%emt 00:00:21]} 23. Rhf1 {[%clk 00:27:12]} {[%emt 00:04:34]} Rbb7
{[%clk 00:48:05]} {[%emt 00:01:23]} 24. Kc2 {[%clk 00:26:10]} {[%emt 00:01:12]}
Rbf7 {[%clk 00:47:39]} {[%emt 00:00:36]} 25. Rd2 {[%clk 00:24:31]} {[%emt
00:01:48]} Bb6 {[%clk 00:47:41]} {[%emt 00:00:09]} 26. Nf5 {[%clk 00:24:05]}
{[%emt 00:00:35]} Rd7 {[%clk 00:45:39]} {[%emt 00:02:13]} 27. g4 {[%clk
00:20:46]} {[%emt 00:03:30]} Rh3 {[%clk 00:42:35]} {[%emt 00:03:13]} 28. Rfd1
{[%clk 00:19:17]} {[%emt 00:01:39]} Bc5 {[%clk 00:42:35]} {[%emt 00:00:11]} 29.
Re2 {[%clk 00:16:55]} {[%emt 00:02:31]} Rdh7 {[%clk 00:41:35]} {[%emt
00:01:10]} 30. Rh1 {[%clk 00:13:35]} {[%emt 00:03:30]} a5 {[%clk 00:40:23]}
{[%emt 00:01:22]} 31. a3 {[%clk 00:13:11]} {[%emt 00:00:34]} a4 {[%clk
00:40:04]} {[%emt 00:00:30]} 32. Rd2 {[%clk 00:12:28]} {[%emt 00:00:52]} Rf3
{[%clk 00:32:49]} {[%emt 00:07:24]} 33. Rhd1 {[%clk 00:10:58]} {[%emt
00:01:41]} Rd7 {[%clk 00:32:33]} {[%emt 00:00:26]} 34. h4 {[%clk 00:07:59]}
{[%emt 00:03:08]} gxh4 {[%clk 00:32:15]} {[%emt 00:00:28]} 35. Nxh4 {[%clk
00:07:55]} {[%emt 00:00:14]} Rg3 {[%clk 00:31:33]} {[%emt 00:00:51]} 36. Nf5
{[%clk 00:05:20]} {[%emt 00:02:46]} Rxg4 {[%clk 00:31:36]} {[%emt 00:00:07]} 37.
Re2 {[%clk 00:04:37]} {[%emt 00:00:54]} Rh7 {[%clk 00:31:25]} {[%emt 00:00:21]}
38. Rd3 {[%clk 00:03:50]} {[%emt 00:00:57]} Rh1 {[%clk 00:30:22]} {[%emt
00:01:12]} 39. b4 {[%clk 00:03:21]} {[%emt 00:00:40]} axb3+ {[%clk 00:30:22]}
{[%emt 00:00:09]} 40. Rxb3 {[%clk 00:03:12]} {[%emt 00:00:19]} Ra1 {[%clk
00:30:18]} {[%emt 00:00:14]} 41. Rb7 {[%clk 00:02:37]} {[%emt 00:00:47]} d5
{[%clk 00:30:08]} {[%emt 00:00:18]} 42. Ng7+ {[%clk 00:02:03]} {[%emt
00:00:45]} Rxg7 {[%clk 00:30:14]} {[%emt 00:00:04]} 43. cxd5+ {[%clk 00:01:43]}
{[%emt 00:00:31]} cxd5 {[%clk 00:30:14]} {[%emt 00:00:09]} 44. exd5+ {[%clk
00:01:47]} {[%emt 00:00:05]} Kxd5 {[%clk 00:30:17]} {[%emt 00:00:08]} 45. Rxg7
{[%clk 00:01:54]} {[%emt 00:00:03]} Ra2+ {[%clk 00:29:57]} {[%emt 00:00:31]} 46.
Kd1 {[%clk 00:01:58]} {[%emt 00:00:05]} Rxa3 {[%clk 00:30:01]} {[%emt
00:00:06]} 47. Rd2+ {[%clk 00:00:29]} {[%emt 00:01:40]} Bd4 {[%clk 00:30:05]}
{[%emt 00:00:06]} 48. Ke2 {[%clk 00:00:20]} {[%emt 00:00:17]} Re3+ {[%clk
00:30:07]} {[%emt 00:00:10]} 49. Kf1 {[%clk 00:00:24]} {[%emt 00:00:05]} f5
{[%clk 00:30:03]} {[%emt 00:00:13]} 50. Rf7 {[%clk 00:00:18]} {[%emt 00:00:17]}
Ke4 {[%clk 00:30:05]} {[%emt 00:00:09]} 51. Re2 {[%clk 00:00:15]} {[%emt
00:00:13]} f4 {[%clk 00:29:58]} {[%emt 00:00:17]} 52. Ke1 {[%clk 00:00:12]}
{[%emt 00:00:13]} Kf3 {[%clk 00:29:03]} {[%emt 00:01:05]} 53. Rxe3+ {[%clk
00:00:18]} {[%emt 00:00:03]} Bxe3 {[%clk 00:29:09]} {[%emt 00:00:05]} 54. Rh7
{[%clk 00:00:19]} {[%emt 00:00:09]} Bf2+ {[%clk 00:27:31]} {[%emt 00:01:48]} 55.
Kf1 {[%clk 00:00:21]} {[%emt 00:00:08]} e4 {[%clk 00:27:25]} {[%emt 00:00:15]}
56. Rb7 {[%clk 00:00:18]} {[%emt 00:00:14]} e3 {[%clk 00:25:03]} {[%emt
00:02:32]} 57. Rb2 {[%clk 00:00:18]} {[%emt 00:00:10]} Bh4 {[%clk 00:24:50]}
{[%emt 00:00:23]} 58. Ra2 {[%clk 00:00:14]} {[%emt 00:00:14]} Bf6 {[%clk
00:24:45]} {[%emt 00:00:14]} 59. Rh2 {[%clk 00:00:12]} {[%emt 00:00:12]} Bc3
{[%clk 00:24:15]} {[%emt 00:00:40]} 60. Rh3+ {[%clk 00:00:14]} {[%emt
00:00:09]} Kg4 {[%clk 00:24:17]} {[%emt 00:00:08]} 61. Rh6 {[%clk 00:00:11]}
{[%emt 00:00:13]} f3 {[%clk 00:23:56]} {[%emt 00:00:30]} 62. Re6 {[%clk
00:00:13]} {[%emt 00:00:08]} Kf4 {[%clk 00:23:57]} {[%emt 00:00:10]} 63. Re8
{[%clk 00:00:15]} {[%emt 00:00:08]} Be5 {[%clk 00:23:55]} {[%emt 00:00:12]} 64.
Rf8+ {[%clk 00:00:15]} {[%emt 00:00:10]} Ke4 {[%clk 00:23:57]} {[%emt
00:00:07]} 65. Re8 {[%clk 00:00:16]} {[%emt 00:00:10]} Kd4 {[%clk 00:23:51]}
{[%emt 00:00:15]} 66. Rd8+ {[%clk 00:00:20]} {[%emt 00:00:06]} Kc3 {[%clk
00:23:24]} {[%emt 00:00:38]} 67. Re8 {[%clk 00:00:12]} {[%emt 00:00:18]} Bd4
{[%clk 00:22:57]} {[%emt 00:00:36]} 68. Re7 {[%clk 00:00:12]} {[%emt 00:00:10]}
Kd2 {[%clk 00:22:48]} {[%emt 00:00:19]} 69. Rd7 {[%clk 00:00:12]} {[%emt
00:00:11]} e2+ {[%clk 00:22:49]} {[%emt 00:00:08]} 0-1

[Event "NK ABC Kwalificatie 2"]
[Site "Zoetermeer, Netherlands"]
[Date "2025.01.04"]
[Round "4.4"]
[White "Madularea, David"]
[Black "Kazarjan, Gachatur"]
[Result "1/2-1/2"]
[TimeControl "55+10"]
[WhiteFideId "8700494"]
[BlackFideId "8595884"]
[WhiteElo "2232"]
[BlackElo "2105"]

1. e4 {[%clk 00:55:17]} {[%emt 00:00:02]} c5 {[%clk 00:54:17]} {[%emt
00:01:03]} 2. Nf3 {[%clk 00:55:23]} {[%emt 00:00:04]} d6 {[%clk 00:54:24]}
{[%emt 00:00:03]} 3. Bb5+ {[%clk 00:55:17]} {[%emt 00:00:17]} Nd7 {[%clk
00:54:22]} {[%emt 00:00:12]} 4. O-O {[%clk 00:55:23]} {[%emt 00:00:04]} g6
{[%clk 00:54:28]} {[%emt 00:00:04]} 5. Re1 {[%clk 00:52:49]} {[%emt 00:02:44]}
Bg7 {[%clk 00:54:27]} {[%emt 00:00:11]} 6. d4 {[%clk 00:52:19]} {[%emt
00:00:39]} cxd4 {[%clk 00:54:30]} {[%emt 00:00:07]} 7. Nxd4 {[%clk 00:52:25]}
{[%emt 00:00:04]} Ngf6 {[%clk 00:54:29]} {[%emt 00:00:11]} 8. Bf1 {[%clk
00:51:39]} {[%emt 00:00:56]} O-O {[%clk 00:54:32]} {[%emt 00:00:07]} 9. c4
{[%clk 00:51:44]} {[%emt 00:00:05]} a6 {[%clk 00:54:06]} {[%emt 00:00:37]} 10.
Nc3 {[%clk 00:51:43]} {[%emt 00:00:10]} Qc7 {[%clk 00:53:11]} {[%emt 00:01:05]}
11. Be3 {[%clk 00:49:19]} {[%emt 00:02:34]} Ne5 {[%clk 00:49:54]} {[%emt
00:03:27]} 12. Qe2 {[%clk 00:45:11]} {[%emt 00:04:19]} Bd7 {[%clk 00:32:40]}
{[%emt 00:17:24]} 13. Rac1 {[%clk 00:41:03]} {[%emt 00:04:18]} e6 {[%clk
00:29:29]} {[%emt 00:03:21]} 14. f3 {[%clk 00:39:12]} {[%emt 00:02:01]} Rac8
{[%clk 00:29:13]} {[%emt 00:00:25]} 15. b3 {[%clk 00:38:28]} {[%emt 00:00:55]}
Rfd8 {[%clk 00:28:50]} {[%emt 00:00:33]} 16. Qf2 {[%clk 00:33:48]} {[%emt
00:04:50]} Qb8 {[%clk 00:23:08]} {[%emt 00:05:52]} 17. a4 {[%clk 00:28:18]}
{[%emt 00:05:39]} Be8 {[%clk 00:21:53]} {[%emt 00:01:25]} 18. a5 {[%clk
00:26:27]} {[%emt 00:02:02]} Nc6 {[%clk 00:18:21]} {[%emt 00:03:41]} 19. Nxc6
{[%clk 00:24:46]} {[%emt 00:01:50]} Bxc6 {[%clk 00:18:25]} {[%emt 00:00:06]} 20.
Bb6 {[%clk 00:23:49]} {[%emt 00:01:07]} Rd7 {[%clk 00:18:31]} {[%emt 00:00:04]}
21. b4 {[%clk 00:19:51]} {[%emt 00:04:09]} Re7 {[%clk 00:18:34]} {[%emt
00:00:06]} 22. Red1 {[%clk 00:19:39]} {[%emt 00:00:22]} Be8 {[%clk 00:18:13]}
{[%emt 00:00:32]} 23. Rd2 {[%clk 00:17:08]} {[%emt 00:02:41]} Nd7 {[%clk
00:17:31]} {[%emt 00:00:52]} 24. Ba7 {[%clk 00:11:52]} {[%emt 00:05:26]} Qc7
{[%clk 00:17:07]} {[%emt 00:00:34]} 25. Rdc2 {[%clk 00:08:43]} {[%emt
00:03:19]} Ne5 {[%clk 00:14:55]} {[%emt 00:02:21]} 26. Nd5 {[%clk 00:07:23]}
{[%emt 00:01:30]} exd5 {[%clk 00:14:43]} {[%emt 00:00:23]} 27. cxd5 {[%clk
00:07:28]} {[%emt 00:00:05]} Nc6 {[%clk 00:14:49]} {[%emt 00:00:04]} 28. dxc6
{[%clk 00:06:49]} {[%emt 00:00:49]} Bxc6 {[%clk 00:14:50]} {[%emt 00:00:10]} 29.
Bb6 {[%clk 00:04:27]} {[%emt 00:02:31]} Qd7 {[%clk 00:14:49]} {[%emt 00:00:11]}
30. b5 {[%clk 00:04:26]} {[%emt 00:00:11]} axb5 {[%clk 00:14:56]} {[%emt
00:00:03]} 31. Bxb5 {[%clk 00:04:30]} {[%emt 00:00:06]} Ree8 {[%clk 00:15:04]}
{[%emt 00:00:02]} 32. Bxc6 {[%clk 00:03:46]} {[%emt 00:00:54]} Rxc6 {[%clk
00:14:59]} {[%emt 00:00:15]} 33. Rxc6 {[%clk 00:03:46]} {[%emt 00:00:09]} bxc6
{[%clk 00:15:08]} {[%emt 00:00:02]} 34. a6 {[%clk 00:02:47]} {[%emt 00:01:09]}
c5 {[%clk 00:15:14]} {[%emt 00:00:05]} 35. Qa2 {[%clk 00:02:33]} {[%emt
00:00:23]} Bd4+ {[%clk 00:15:19]} {[%emt 00:00:05]} 36. Kh1 {[%clk 00:02:36]}
{[%emt 00:00:06]} Ra8 {[%clk 00:14:46]} {[%emt 00:00:44]} 37. a7 {[%clk
00:02:10]} {[%emt 00:00:36]} Kg7 {[%clk 00:13:40]} {[%emt 00:01:16]} 38. Qd5
{[%clk 00:01:34]} {[%emt 00:00:45]} Rxa7 {[%clk 00:13:04]} {[%emt 00:00:46]} 39.
Bxa7 {[%clk 00:01:43]} {[%emt 00:00:01]} Qxa7 {[%clk 00:13:13]} {[%emt
00:00:01]} 40. Qxd6 {[%clk 00:01:16]} {[%emt 00:00:36]} Qa3 {[%clk 00:13:16]}
{[%emt 00:00:08]} 41. Rd1 {[%clk 00:00:40]} {[%emt 00:00:46]} Qb3 {[%clk
00:13:15]} {[%emt 00:00:11]} 42. Rxd4 {[%clk 00:00:45]} {[%emt 00:00:05]} cxd4
{[%clk 00:13:19]} {[%emt 00:00:07]} 43. Qxd4+ {[%clk 00:00:54]} Kg8 {[%clk
00:13:16]} {[%emt 00:00:11]} 44. h4 {[%clk 00:00:55]} {[%emt 00:00:09]} h5
{[%clk 00:13:19]} {[%emt 00:00:07]} 45. Qd8+ {[%clk 00:00:55]} {[%emt
00:00:10]} Kh7 {[%clk 00:13:23]} {[%emt 00:00:06]} 46. Qd5 {[%clk 00:00:54]}
{[%emt 00:00:11]} Qb1+ {[%clk 00:13:26]} {[%emt 00:00:07]} 47. Kh2 {[%clk
00:01:02]} {[%emt 00:00:01]} Kg7 {[%clk 00:13:30]} {[%emt 00:00:07]} 48. Qe5+
{[%clk 00:00:52]} {[%emt 00:00:21]} Kg8 {[%clk 00:13:29]} {[%emt 00:00:10]} 49.
Qf6 {[%clk 00:00:30]} {[%emt 00:00:31]} Qb8+ {[%clk 00:13:02]} {[%emt
00:00:38]} 50. e5 {[%clk 00:00:36]} {[%emt 00:00:04]} Qc8 {[%clk 00:13:03]}
{[%emt 00:00:09]} 51. Kg3 {[%clk 00:00:21]} {[%emt 00:00:25]} Qc7 {[%clk
00:12:26]} {[%emt 00:00:47]} 52. Qd6 {[%emt 00:00:41]} Qc1 {[%clk 00:12:07]} 53.
Qd8+ {[%clk 00:00:11]} {[%emt 00:00:17]} Kh7 {[%clk 00:12:08]} {[%emt
00:00:09]} 54. Qf6 {[%clk 00:00:13]} {[%emt 00:00:08]} Qe1+ {[%clk 00:12:04]}
{[%emt 00:00:15]} 55. Kh2 {[%clk 00:00:22]} {[%emt 00:00:01]} Kg8 {[%clk
00:11:47]} {[%emt 00:00:27]} 56. f4 {[%clk 00:00:15]} {[%emt 00:00:17]} Qe4
{[%clk 00:11:44]} {[%emt 00:00:13]} 57. Qd8+ {[%clk 00:00:23]} {[%emt
00:00:02]} Kg7 {[%emt 00:00:12]} 58. Qd2 {[%clk 00:00:26]} Qf5 {[%clk
00:11:39]} {[%emt 00:00:20]} 59. Qe3 {[%clk 00:00:33]} {[%emt 00:00:02]} Qg4
{[%clk 00:11:40]} {[%emt 00:00:09]} 60. Qg3 {[%clk 00:00:17]} {[%emt 00:00:26]}
Qf5 {[%clk 00:11:11]} {[%emt 00:00:39]} 61. Qg5 {[%clk 00:00:23]} {[%emt
00:00:04]} Qe4 {[%clk 00:11:15]} {[%emt 00:00:06]} 62. Kh3 {[%clk 00:00:13]}
{[%emt 00:00:20]} Qd3+ {[%clk 00:11:16]} {[%emt 00:00:10]} 63. Kh2 {[%clk
00:00:20]} {[%emt 00:00:02]} Qe4 {[%clk 00:11:24]} {[%emt 00:00:03]} 1/2-1/2